bitfinex-derivatives/quotes_BTCF0:USTF0_20250709
["timestamp","ask_amount","ask_price","bid_price","bid_amount"]
[1752092745519,0.80921873,111140.0,111130.0,0.68897853]
[1752092745816,0.80921873,111140.0,111130.0,0.60805055]
[1752092746723,0.80921873,111140.0,111130.0,0.68898827]
[1752092747223,0.79401873,111140.0,111130.0,0.59253055]
[1752092747411,0.80921873,111140.0,111130.0,0.59253055]
[1752092747814,0.80921873,111140.0,111130.0,0.60864413]
[1752092748014,1.08473147,111140.0,111130.0,0.60864413]
[1752092748217,1.08473147,111140.0,111130.0,0.71654222]
[1752092748420,1.06953147,111140.0,111130.0,0.70102222]
[1752092748820,1.06953147,111140.0,111130.0,0.71654222]
[1752092749120,1.07417501,111140.0,111130.0,0.66654222]
[1752092749324,1.07417501,111140.0,111130.0,0.55864413]
[1752092750620,1.07417501,111140.0,111130.0,0.55866118]
[1752092752318,1.07417501,111140.0,111130.0,0.37873108]
[1752092752523,1.09002501,111140.0,111130.0,0.43873108]
[1752092752718,1.09002501,111140.0,111130.0,0.54662917]
[1752092753125,1.09002501,111140.0,111130.0,0.43873108]
[1752092753322,1.09002501,111140.0,111130.0,0.42321108]
[1752092753522,1.09002501,111140.0,111130.0,0.40935842]
[1752092753716,1.09002501,111140.0,111130.0,0.12420469]
[1752092754433,1.09002501,111140.0,111130.0,0.13420469]
[1752092754728,1.95558385,111140.0,111120.0,0.00179978]
[1752092754929,0.3608,111120.0,111100.0,0.13973359]
[1752092755123,0.3608,111120.0,111100.0,0.315]
[1752092755124,1.87264234,111110.0,111100.0,0.315]
[1752092755433,1.87264234,111110.0,111100.0,0.005]
[1752092756030,1.87264234,111110.0,111100.0,0.015]
[1752092756229,2.89309208,111110.0,111080.0,0.13653401]
[1752092756421,1.19585943,111090.0,111080.0,0.47653401]
[1752092756628,2.15194217,111090.0,111080.0,0.34180042]
[1752092756827,2.15194217,111090.0,111080.0,0.47664106]
[1752092757229,2.33198217,111090.0,111080.0,0.14664106]
[1752092757736,2.33198217,111090.0,111080.0,0.00180042]
[1752092758033,1.76510669,111090.0,111080.0,0.01180042]
[1752092758233,2.20375669,111090.0,111080.0,0.00400002]
[1752092758434,2.40478217,111090.0,111080.0,0.007]
[1752092758625,2.79813299,111090.0,111080.0,0.007]
[1752092758825,2.47813299,111090.0,111080.0,0.003]
[1752092759039,1.92710751,111090.0,111080.0,0.003]
[1752092759336,1.92710751,111090.0,111080.0,0.013]
[1752092759337,2.47813299,111090.0,111080.0,0.013]
[1752092759532,2.59403299,111090.0,111080.0,0.013]
[1752092759830,0.1800072,111080.0,111070.0,0.00180059]
[1752092760030,1.55983268,111080.0,111070.0,9e-08]
[1752092760229,0.19908086,111070.0,111060.0,0.13853161]
[1752092760529,1.30060634,111070.0,111060.0,0.13853161]
[1752092760732,0.9522936,111070.0,111060.0,0.15405161]
[1752092760930,1.69012986,111070.0,111060.0,0.14853161]
[1752092761229,1.34518086,111070.0,111060.0,0.25733161]
[1752092761444,2.21020186,111070.0,111060.0,0.01369097]
[1752092761733,2.29885186,111070.0,111060.0,0.13853161]
[1752092761923,0.95195332,111070.0,111060.0,0.13853161]
[1752092762126,1.45660132,111070.0,111060.0,0.00369097]
[1752092762320,1.80155032,111070.0,111060.0,0.24733161]
[1752092762526,1.72875032,111070.0,111060.0,0.11249097]
[1752092762829,1.72875032,111070.0,111060.0,0.12249097]
[1752092763028,1.72895032,111070.0,111060.0,0.12249097]
[1752092763729,2.10655032,111070.0,111060.0,0.02369097]
[1752092763923,1.78655032,111070.0,111060.0,0.02369097]
[1752092764429,2.09655032,111070.0,111060.0,0.02369097]
[1752092764621,2.11655032,111070.0,111060.0,0.02369097]
[1752092765021,2.14070032,111070.0,111060.0,0.11131116]
[1752092765235,2.15655032,111070.0,111060.0,0.00369097]
[1752092765828,1.78655032,111070.0,111060.0,0.00369097]
[1752092766026,2.27662232,111070.0,111060.0,0.00369097]
[1752092766635,0.1800399,111060.0,111050.0,0.10762019]
[1752092766834,1.0164889,111060.0,111050.0,0.12817426]
[1752092767036,1.0164889,111060.0,111050.0,0.03462606]
[1752092767334,1.0892889,111060.0,111050.0,0.13213028]
[1752092767531,1.0892889,111060.0,111050.0,0.14213028]
[1752092767929,1.0912889,111060.0,111050.0,0.14213028]
[1752092768128,1.0922889,111060.0,111050.0,0.25223028]
[1752092768329,0.7473399,111060.0,111050.0,0.25223028]
[1752092768529,1.0194889,111060.0,111050.0,0.25223028]
[1752092768730,1.0201389,111060.0,111050.0,0.25223028]
[1752092769332,1.0201389,111060.0,111050.0,0.14472606]
[1752092769529,0.6751899,111060.0,111050.0,0.14472606]
[1752092769836,1.07056745,111060.0,111050.0,0.13472606]
[1752092770438,1.14336745,111060.0,111050.0,0.02462606]
[1752092771533,1.14336745,111060.0,111050.0,6e-08]
[1752092772734,1.51336745,111060.0,111050.0,6e-08]
[1752092773133,1.51336745,111060.0,111040.0,0.00180107]
[1752092773134,0.1800724,111040.0,111030.0,1e-08]
[1752092773435,2.33515028,111040.0,111030.0,1e-08]
[1752092773737,3.94903028,111040.0,111030.0,1e-08]
[1752092774035,3.94903028,111040.0,111030.0,0.01318645]
[1752092774036,3.87903028,111040.0,111030.0,0.01318645]
[1752092774243,3.87903028,111040.0,111030.0,5e-08]
[1752092774533,3.93903028,111040.0,111030.0,5e-08]
[1752092774839,0.1800886,111030.0,111020.0,0.1103]
[1752092775039,1.0330476,111030.0,111020.0,0.1103]
[1752092775440,1.0330476,111030.0,111020.0,0.1203]
[1752092775735,0.5408886,111030.0,111020.0,0.14923]
[1752092775940,0.5408886,111030.0,111020.0,0.3393348]
[1752092776138,1.03344,111030.0,111020.0,0.4540348]
[1752092776337,0.5408886,111030.0,111020.0,0.4540348]
[1752092776533,1.2134086,111030.0,111020.0,0.4540348]
[1752092776731,0.5408886,111030.0,111020.0,0.4540348]
[1752092776930,1.2134886,111030.0,111020.0,0.4560348]
[1752092777137,1.28530973,111030.0,111020.0,0.4560348]
[1752092777338,1.28630973,111030.0,111020.0,0.4880348]
[1752092778134,0.61370973,111030.0,111020.0,0.4880348]
[1752092778336,1.30190973,111030.0,111020.0,0.4880348]
[1752092778633,1.28614973,111030.0,111020.0,0.4880348]
[1752092779539,1.28614973,111030.0,111020.0,0.30793]
[1752092779739,1.28614973,111030.0,111020.0,0.29793]
[1752092780144,1.28546973,111030.0,111020.0,0.29793]
[1752092780338,1.63041873,111030.0,111020.0,0.26793]
[1752092780846,1.63041873,111030.0,111020.0,0.24429]
[1752092781338,1.68383596,111030.0,111020.0,0.229]
[1752092781741,1.90163596,111030.0,111020.0,0.1187]
[1752092782037,1.90163596,111030.0,111000.0,0.05680172]
[1752092782038,0.1801215,111010.0,111000.0,0.05680172]
[1752092782236,1.9330705,111010.0,111000.0,0.31179172]
[1752092783239,1.5881215,111010.0,111000.0,0.31179172]
[1752092783645,1.9330705,111010.0,111000.0,0.49192942]
[1752092783948,0.9174815,111010.0,111000.0,0.33743172]
[1752092784248,1.5874815,111010.0,111000.0,0.51956942]
[1752092784631,1.5874815,111010.0,111000.0,0.54956942]
[1752092784834,1.5873615,111010.0,111000.0,0.54956942]
[1752092785037,1.5872415,111010.0,111000.0,0.56364896]
[1752092785238,1.59258685,111010.0,111000.0,0.38351126]
[1752092785438,1.5870815,111010.0,111000.0,0.38351126]
[1752092785638,1.5870815,111010.0,111000.0,0.56364896]
[1752092786142,1.5712815,111010.0,111000.0,0.56364896]
[1752092786342,1.5712815,111010.0,111000.0,0.57704416]
[1752092787047,1.5713215,111010.0,111000.0,0.56296462]
[1752092787649,1.5713215,111010.0,111000.0,0.56291195]
[1752092789248,1.5703615,111010.0,111000.0,0.38277425]
[1752092789544,1.5702815,111010.0,111000.0,0.38277425]
[1752092789747,1.9152305,111010.0,111000.0,0.38277425]
[1752092790054,1.5702815,111010.0,111000.0,0.56291195]
[1752092790346,1.60787434,111010.0,111000.0,0.56291195]
[1752092790547,1.5702815,111010.0,111000.0,0.56291195]
[1752092790943,1.5702815,111010.0,111000.0,0.55291195]
[1752092791646,1.5700015,111010.0,111000.0,0.55291195]
[1752092792653,0.3608,111020.0,111010.0,0.1801214]
[1752092792843,0.5409052,111020.0,111010.0,0.78740831]
[1752092793044,0.57850382,111020.0,111010.0,0.78740831]
[1752092793243,0.57850382,111020.0,111010.0,0.87740831]
[1752092793550,0.57850382,111020.0,111010.0,0.51911678]
[1752092793743,0.57950382,111020.0,111010.0,0.53226225]
[1752092794238,0.5419052,111020.0,111010.0,0.53227863]
[1752092794445,0.58033727,111020.0,111010.0,0.53227863]
[1752092794742,0.40023207,111020.0,111010.0,0.48475131]
[1752092794949,0.3628,111020.0,111010.0,1.08970031]
[1752092795149,0.3628,111020.0,111010.0,1.26985231]
[1752092795547,0.002,111020.0,111010.0,1.26985231]
[1752092796146,0.002,111020.0,111010.0,1.29349231]
[1752092796541,0.002,111020.0,111010.0,1.76985231]
[1752092796752,0.03920761,111020.0,111010.0,1.79349231]
[1752092796951,0.002,111020.0,111010.0,1.79349231]
[1752092797143,0.3608,111030.0,111020.0,0.1801038]
[1752092797343,0.39800815,111030.0,111020.0,1.7701028]
[1752092797538,0.57809575,111030.0,111020.0,1.9502388]
[1752092797753,0.39800815,111030.0,111020.0,1.9502388]
[1752092798142,0.39800815,111030.0,111020.0,1.6302388]
[1752092798339,0.39800815,111030.0,111020.0,1.9902388]
[1752092798540,0.40000815,111030.0,111020.0,1.9902388]
[1752092799151,0.40000815,111030.0,111020.0,1.9912388]
[1752092799445,0.39800815,111030.0,111020.0,1.9912388]
[1752092799653,0.03720815,111030.0,111020.0,2.0032388]
[1752092799947,0.03720815,111030.0,111020.0,1.589445]
[1752092800151,0.03720815,111030.0,111020.0,1.7204216]
[1752092800644,0.03720815,111030.0,111020.0,1.5871828]
[1752092801244,0.39800815,111030.0,111020.0,1.5871828]
[1752092801754,0.03720815,111030.0,111020.0,1.5871828]
[1752092802051,0.03720815,111030.0,111020.0,1.7673188]
[1752092802248,0.37992988,111040.0,111030.0,0.1800943]
[1752092802453,0.3608,111040.0,111030.0,0.96239465]
[1752092802846,0.5408706,111050.0,111040.0,0.1800781]
[1752092803051,0.5877678,111050.0,111040.0,0.2456281]
[1752092803248,0.4076972,111050.0,111040.0,1.1704981]
[1752092803446,0.3608,111050.0,111040.0,1.4554471]
[1752092803750,0.44068234,111060.0,111040.0,2.1955511]
[1752092804056,0.62072794,111060.0,111050.0,0.4278118]
[1752092804250,0.44068234,111060.0,111050.0,0.5033618]
[1752092804551,0.44068234,111060.0,111050.0,0.52028379]
[1752092804748,0.44068234,111060.0,111050.0,0.86523279]
[1752092804951,0.44068234,111060.0,111050.0,1.04523279]
[1752092805144,0.63693784,111060.0,111050.0,1.04523279]
[1752092805346,0.44068234,111060.0,111050.0,1.02968279]
[1752092805652,0.44068234,111060.0,111050.0,1.52968279]
[1752092805853,0.07988234,111060.0,111050.0,1.52968279]
[1752092806053,0.7298014,111070.0,111060.0,0.1800455]
[1752092806256,0.7460114,111070.0,111060.0,1.7942955]
[1752092806465,0.72854152,111070.0,111060.0,1.7942955]
[1752092806656,0.57610986,111070.0,111060.0,1.7942955]
[1752092806856,0.37985746,111070.0,111060.0,1.7942955]
[1752092807056,0.46015062,111070.0,111060.0,1.7942955]
[1752092807258,0.46615062,111070.0,111060.0,1.79990148]
[1752092807457,0.48236062,111070.0,111060.0,1.79990148]
[1752092807846,0.38485746,111070.0,111060.0,2.10485048]
[1752092808054,0.38485746,111070.0,111060.0,2.47585048]
[1752092808055,0.38885746,111070.0,111060.0,2.47585048]
[1752092808449,0.4691393,111070.0,111060.0,2.13090148]
[1752092808660,0.4691393,111070.0,111060.0,2.47585048]
[1752092808955,0.6491685,111070.0,111060.0,2.16475048]
[1752092809155,0.6491685,111070.0,111060.0,2.12980148]
[1752092809355,0.4691393,111070.0,111060.0,1.83980148]
[1752092809659,0.4691393,111070.0,111060.0,2.14980148]
[1752092809861,0.38885746,111070.0,111060.0,2.14980148]
[1752092810049,0.38885746,111070.0,111060.0,1.83980148]
[1752092810255,0.4691393,111070.0,111060.0,2.13440148]
[1752092810660,0.4691393,111070.0,111060.0,2.38440148]
[1752092810862,0.4691393,111070.0,111060.0,2.72935048]
[1752092811361,0.38885746,111070.0,111060.0,2.46935048]
[1752092811762,0.3698,111070.0,111060.0,1.82980148]
[1752092811956,0.009,111070.0,111060.0,2.48475048]
[1752092812155,0.3698,111070.0,111060.0,2.48475048]
[1752092812556,0.3698,111070.0,111060.0,2.13980148]
[1752092812855,0.3698,111070.0,111060.0,2.98475048]
[1752092813053,0.004,111070.0,111060.0,2.99575048]
[1752092813255,0.55048184,111080.0,111070.0,0.19728149]
[1752092813455,0.55048184,111080.0,111070.0,0.70653149]
[1752092813456,0.48641,111080.0,111070.0,0.70653149]
[1752092813664,0.48641,111080.0,111070.0,0.50813149]
[1752092813854,0.3628,111080.0,111070.0,0.85308049]
[1752092814058,0.3628,111080.0,111070.0,1.13308049]
[1752092814261,0.39691811,111080.0,111070.0,1.13308049]
[1752092814457,0.03811811,111080.0,111070.0,0.85308049]
[1752092814666,0.39991811,111080.0,111070.0,1.13308049]
[1752092814865,0.98798731,111080.0,111070.0,0.54728149]
[1752092815067,1.19768731,111080.0,111070.0,0.90683149]
[1752092815258,1.1635692,111080.0,111070.0,0.24283149]
[1752092815455,1.1473592,111080.0,111070.0,0.22728149]
[1752092815659,1.1708092,111080.0,111070.0,0.22728149]
[1752092815961,0.8258602,111080.0,111070.0,0.25728149]
[1752092816168,0.8258602,111080.0,111070.0,0.27283149]
[1752092816169,0.8420702,111080.0,111070.0,0.27283149]
[1752092816466,0.8420702,111080.0,111070.0,0.25728149]
[1752092816668,0.8420702,111080.0,111070.0,0.27283149]
[1752092816858,0.8420702,111080.0,111070.0,0.25728149]
[1752092817055,0.8420702,111080.0,111070.0,0.27283149]
[1752092817365,0.8420702,111080.0,111070.0,0.27135396]
[1752092817763,0.8420702,111080.0,111070.0,0.28690396]
[1752092818066,0.8420702,111080.0,111070.0,0.27135396]
[1752092818256,0.8420702,111080.0,111070.0,0.58690446]
[1752092818456,0.8420702,111080.0,111070.0,0.28690446]
[1752092818660,0.8420702,111080.0,111070.0,0.53690446]
[1752092819068,0.8420702,111080.0,111070.0,0.83150446]
[1752092819466,0.8420702,111080.0,111070.0,0.85150446]
[1752092820069,0.8420702,111080.0,111070.0,0.60149365]
[1752092821368,0.6386072,111080.0,111070.0,0.60149365]
[1752092821569,0.8186206,111080.0,111070.0,1.26365365]
[1752092822472,0.8420706,111080.0,111070.0,1.50365365]
[1752092822865,0.8420706,111080.0,111070.0,1.26365365]
[1752092823163,0.8420706,111080.0,111070.0,1.26366209]
[1752092823665,0.8420706,111080.0,111070.0,1.49366209]
[1752092823862,0.8186206,111080.0,111070.0,1.49366209]
[1752092824072,0.8186206,111080.0,111070.0,1.27366209]
[1752092825074,0.8186206,111080.0,111070.0,1.76948319]
[1752092825268,0.8420706,111080.0,111070.0,0.83150209]
[1752092825467,1.1178917,111080.0,111070.0,0.83150209]
[1752092825667,0.86104674,111080.0,111070.0,0.83150209]
[1752092825866,1.13686784,111080.0,111070.0,0.83150209]
[1752092826070,1.13686784,111080.0,111070.0,0.65147239]
[1752092826269,1.78177784,111080.0,111070.0,0.34132239]
[1752092826468,1.12065784,111080.0,111070.0,0.24135229]
[1752092826667,1.78153784,111080.0,111070.0,0.06132239]
[1752092827267,1.50571674,111080.0,111070.0,0.06132239]
[1752092827574,1.78153784,111080.0,111070.0,0.24135229]
[1752092827774,1.78117784,111080.0,111070.0,0.25690229]
[1752092827974,1.78117784,111080.0,111070.0,0.22690229]
[1752092828175,1.78117784,111080.0,111070.0,0.29690229]
[1752092830272,0.84483674,111080.0,111070.0,0.29690229]
[1752092830478,1.52110674,111080.0,111070.0,0.85272339]
[1752092830775,1.52110674,111080.0,111070.0,1.05872339]
[1752092830976,1.52110674,111080.0,111070.0,1.35332339]
[1752092831177,1.52110674,111080.0,111070.0,1.07750229]
[1752092831377,0.89553861,111080.0,111070.0,0.87150229]
[1752092831577,1.55481861,111080.0,111070.0,0.87150229]
[1752092831877,1.53905862,111080.0,111070.0,0.87157229]
[1752092832078,1.50498674,111080.0,111070.0,0.87157229]
[1752092832376,1.53906,111080.0,111070.0,0.86157229]
[1752092832577,1.78080784,111080.0,111070.0,0.86157229]
[1752092832975,1.78080784,111080.0,111070.0,0.60157229]
[1752092833373,1.12152784,111080.0,111070.0,0.60157229]
[1752092833569,0.84570674,111080.0,111070.0,0.60157229]
[1752092833769,0.3658,111080.0,111070.0,2.21758339]
[1752092833973,0.3658,111080.0,111070.0,2.69138339]
[1752092834173,0.5458134,111080.0,111070.0,2.69138339]
[1752092834973,0.5458134,111080.0,111070.0,2.67138339]
[1752092835782,0.5624434,111080.0,111070.0,2.68138339]
[1752092835981,0.5458134,111080.0,111070.0,2.68138339]
[1752092836383,0.38243,111080.0,111070.0,2.68138339]
[1752092836682,0.3658,111080.0,111070.0,2.66576339]
[1752092836882,0.5458096,111080.0,111070.0,1.07314229]
[1752092837076,0.5624396,111080.0,111070.0,1.73110229]
[1752092837471,0.5624396,111080.0,111070.0,1.07314229]
[1752092837676,0.5624396,111080.0,111070.0,1.73082229]
[1752092838086,0.5458096,111080.0,111070.0,1.73082229]
[1752092838286,0.5624396,111080.0,111070.0,1.73082229]
[1752092838580,0.5624396,111080.0,111070.0,1.76082229]
[1752092838883,0.5458096,111080.0,111070.0,1.76082229]
[1752092839186,0.5624396,111080.0,111070.0,1.76082229]
[1752092839382,0.5458096,111080.0,111070.0,1.76082229]
[1752092839584,0.5624396,111080.0,111070.0,1.76082229]
[1752092839784,0.5624396,111080.0,111070.0,1.75082229]
[1752092840384,0.59496816,111080.0,111070.0,1.75082229]
[1752092840788,0.59496816,111080.0,111070.0,1.72743229]
[1752092840980,0.70516816,111080.0,111070.0,1.72743229]
[1752092841492,0.6560096,111080.0,111070.0,1.72743229]
[1752092841692,0.6726396,111080.0,111070.0,1.72743229]
[1752092842080,0.49263,111080.0,111070.0,1.75082229]
[1752092842284,0.38243,111080.0,111070.0,1.75082229]
[1752092842473,0.5624395,111080.0,111070.0,1.75082229]
[1752092842677,0.59499413,111080.0,111070.0,1.43789275]
[1752092843087,0.005,111080.0,111070.0,1.43789275]
[1752092843282,0.3658,111080.0,111070.0,1.53853868]
[1752092843979,0.005,111080.0,111070.0,1.53853868]
[1752092844182,0.3658,111080.0,111070.0,1.53853868]
[1752092844385,0.3658,111080.0,111070.0,2.03853868]
[1752092844386,0.39840456,111080.0,111070.0,2.03853868]
[1752092844580,0.03760456,111080.0,111070.0,2.03853868]
[1752092844780,0.39840456,111080.0,111070.0,1.97853868]
[1752092846289,0.3658,111080.0,111070.0,1.97853868]
[1752092846490,0.39840292,111080.0,111070.0,1.97853868]
[1752092848390,0.3658,111080.0,111070.0,1.97853868]
[1752092849287,0.3658,111080.0,111070.0,1.63378861]
[1752092849492,0.3658,111080.0,111070.0,1.97853868]
[1752092849886,0.3658,111080.0,111070.0,1.89789275]
[1752092850193,0.3658,111080.0,111070.0,2.07794875]
[1752092850587,0.3658,111080.0,111070.0,2.11794875]
[1752092851088,0.3658,111080.0,111070.0,1.88101074]
[1752092851281,0.3658,111080.0,111070.0,2.21169032]
[1752092852096,0.3658,111080.0,111070.0,1.86694025]
[1752092852393,0.3658,111080.0,111070.0,2.21169032]
[1752092852893,0.005,111080.0,111070.0,2.21169032]
[1752092853394,0.3628,111090.0,111080.0,0.1800096]
[1752092853596,0.3608,111110.0,111100.0,0.179977]
[1752092853893,0.39337714,111110.0,111100.0,1.57925554]
[1752092854093,0.39337714,111110.0,111100.0,1.54925554]
[1752092854291,0.03257714,111110.0,111100.0,1.74555554]
[1752092854489,0.39337714,111110.0,111100.0,1.74555554]
[1752092854686,0.39337714,111110.0,111100.0,2.24555554]
[1752092855086,0.39337714,111110.0,111100.0,2.25555554]
[1752092855294,0.3608,111110.0,111100.0,2.26179483]
[1752092855590,0.02073318,111120.0,111110.0,0.1799608]
[1752092855788,0.41404451,111120.0,111110.0,1.09663087]
[1752092855989,0.41404451,111120.0,111110.0,1.12002087]
[1752092856291,0.41404451,111120.0,111110.0,1.30001286]
[1752092856489,0.41404451,111120.0,111110.0,1.62002087]
[1752092856686,0.41404451,111120.0,111110.0,2.27758087]
[1752092856897,0.41504451,111120.0,111110.0,2.27758087]
[1752092857292,0.41504451,111120.0,111110.0,1.62002087]
[1752092857493,0.65851651,111120.0,111110.0,1.0399608]
[1752092857695,0.89003651,111120.0,111110.0,1.0399608]
[1752092858295,0.89003651,111120.0,111110.0,0.5399608]
[1752092858497,0.89000979,111120.0,111110.0,0.1955808]
[1752092858692,0.86568979,111120.0,111110.0,0.5255808]
[1752092859598,0.05421779,111120.0,111110.0,0.8240179]
[1752092859787,0.41501779,111120.0,111110.0,1.303745]
[1752092859988,9e-08,111120.0,111110.0,1.48373699]
[1752092860190,0.002,111130.0,111120.0,0.1799446]
[1752092860396,0.3628,111130.0,111120.0,1.2897988]
[1752092860584,0.3628,111130.0,111120.0,1.8503477]
[1752092860789,0.3628,111130.0,111120.0,1.9459988]
[1752092861085,0.37859,111130.0,111120.0,0.75563991]
[1752092861289,0.48519,111130.0,111120.0,1.68726701]
[1752092861589,0.6651186,111130.0,111120.0,1.66445701]
[1752092861787,0.8300858,111130.0,111120.0,0.53292991]
[1752092861991,1.1057129,111130.0,111120.0,0.53293011]
[1752092862799,0.8300858,111130.0,111120.0,0.53293011]
[1752092862998,0.8320858,111130.0,111120.0,0.53293011]
[1752092863597,0.8320858,111130.0,111120.0,0.58293011]
[1752092864700,0.8320858,111130.0,111120.0,0.57293011]
[1752092865297,0.8080156,111130.0,111120.0,0.57293011]
[1752092865499,1.2825672,111130.0,111120.0,0.57293011]
[1752092865693,1.4624958,111130.0,111120.0,0.57293011]
[1752092865889,1.4624958,111130.0,111120.0,0.59574011]
[1752092866204,0.6280872,111130.0,111120.0,0.57293011]
[1752092866393,0.6280872,111130.0,111120.0,0.59574011]
[1752092866700,0.8080158,111130.0,111120.0,0.59574011]
[1752092866901,0.6280872,111130.0,111120.0,0.59574011]
[1752092867090,0.8080158,111130.0,111120.0,0.59574011]
[1752092867292,0.8080158,111130.0,111120.0,0.57293011]
[1752092868190,1.17660208,111130.0,111120.0,0.56704001]
[1752092868395,1.17660208,111130.0,111120.0,0.57704001]
[1752092868695,1.17660208,111130.0,111120.0,0.59293001]
[1752092868894,0.8320858,111130.0,111120.0,0.27293001]
[1752092869401,0.8080158,111130.0,111120.0,0.55293001]
[1752092869599,0.8080158,111130.0,111120.0,0.92025629]
[1752092869600,0.6280872,111130.0,111120.0,0.92025629]
[1752092869902,0.6280872,111130.0,111120.0,1.01415629]
[1752092870102,0.8080157,111130.0,111120.0,1.12015629]
[1752092870300,0.8080157,111130.0,111120.0,1.14015629]
[1752092870498,0.6280872,111130.0,111120.0,1.14015629]
[1752092870699,0.6280872,111130.0,111120.0,0.79564001]
[1752092871894,0.8080158,111130.0,111120.0,0.79564001]
[1752092872100,0.83999929,111130.0,111120.0,0.79564001]
[1752092873297,0.66007069,111130.0,111120.0,0.79564001]
[1752092873501,0.83999919,111130.0,111120.0,0.79564001]
[1752092873699,0.66007069,111130.0,111120.0,0.43564001]
[1752092873901,0.66007069,111130.0,111120.0,0.80564001]
[1752092874497,0.66007069,111130.0,111120.0,1.15015629]
[1752092874697,0.66007069,111130.0,111120.0,1.14015629]
[1752092874901,0.83999669,111130.0,111120.0,1.14015629]
[1752092875305,0.83999669,111130.0,111120.0,0.79564001]
[1752092876396,0.83999669,111130.0,111120.0,1.44664001]
[1752092876597,0.83999669,111130.0,111120.0,0.61569531]
[1752092876903,0.83999669,111130.0,111120.0,0.39298531]
[1752092877104,0.83999669,111130.0,111120.0,1.04382531]
[1752092877307,0.83999669,111130.0,111120.0,1.04374531]
[1752092877506,1.83527297,111130.0,111120.0,0.37589]
[1752092877803,1.83527297,111130.0,111120.0,0.33589]
[1752092878108,0.1799757,111100.0,111090.0,0.01736031]
[1752092878298,0.1799919,111090.0,111080.0,0.15284151]
[1752092878609,0.68295841,111090.0,111080.0,1.05820448]
[1752092879501,0.68295841,111090.0,111080.0,0.41080448]
[1752092879702,0.68295841,111090.0,111080.0,1.12124448]
[1752092880296,0.68295841,111090.0,111080.0,0.39889]
[1752092880500,0.72281841,111090.0,111080.0,1.03344]
[1752092880902,0.72281841,111090.0,111080.0,0.383]
[1752092881106,1.06733469,111090.0,111080.0,0.383]
[1752092881304,1.15813469,111090.0,111080.0,0.39889]
[1752092882109,1.15813469,111090.0,111080.0,0.383]
[1752092882602,1.15913469,111090.0,111080.0,0.386]
[1752092884602,1.15913469,111090.0,111080.0,0.006]
[1752092884804,1.11927469,111090.0,111080.0,0.356]
[1752092885005,1.79262469,111090.0,111080.0,0.086]
[1752092885210,1.79262469,111090.0,111080.0,0.376]
[1752092885611,1.79262469,111090.0,111080.0,0.006]
[1752092885911,1.79262469,111090.0,111080.0,0.076]
[1752092886213,1.79262469,111090.0,111080.0,0.38988462]
[1752092886394,0.79882841,111090.0,111080.0,0.56989292]
[1752092886596,0.81472377,111090.0,111080.0,0.56989292]
[1752092886800,0.78259032,111090.0,111080.0,0.56989292]
[1752092887106,0.78259032,111090.0,111080.0,0.58578111]
[1752092887606,0.42205731,111090.0,111080.0,1.57909739]
[1752092887808,0.40626731,111090.0,111080.0,1.77199739]
[1752092888006,0.42173731,111090.0,111080.0,1.54999739]
[1752092888203,0.37413842,111090.0,111080.0,1.39148111]
[1752092888405,0.37413842,111090.0,111080.0,1.37559111]
[1752092888406,0.38960842,111090.0,111080.0,1.37559111]
[1752092888605,0.37413842,111090.0,111080.0,1.37559111]
[1752092888806,0.3618,111090.0,111080.0,1.37559111]
[1752092889208,0.64943999,111120.0,111080.0,2.3263424]
[1752092889415,0.9070074,111120.0,111110.0,0.1799595]
[1752092889710,1.2382876,111120.0,111110.0,1.8176395]
[1752092890513,1.23824932,111120.0,111110.0,1.4776395]
[1752092890699,1.24324932,111120.0,111110.0,1.8176395]
[1752092891208,1.5877656,111120.0,111110.0,1.8176395]
[1752092891514,1.5887656,111120.0,111110.0,1.63768]
[1752092891712,1.24424932,111120.0,111110.0,0.34]
[1752092891910,1.5887656,111120.0,111110.0,0.34]
[1752092892118,1.5877656,111120.0,111110.0,0.35388255]
[1752092892319,1.5907656,111120.0,111110.0,0.34]
[1752092892616,1.24624932,111120.0,111110.0,0.35388207]
[1752092892816,1.5907656,111120.0,111110.0,0.34]
[1752092893003,1.5907656,111120.0,111110.0,0.35388244]
[1752092893206,1.5907656,111120.0,111110.0,0.34]
[1752092894118,0.1799595,111110.0,111100.0,1.49054]
[1752092894312,0.5562295,111110.0,111100.0,1.80054]
[1752092894618,0.59206792,111110.0,111100.0,1.80054]
[1752092895007,0.59206792,111110.0,111100.0,1.49054]
[1752092895213,0.59206792,111110.0,111100.0,1.87054]
[1752092895416,0.59306792,111110.0,111100.0,2.0505158]
[1752092896914,0.56956792,111110.0,111100.0,2.0505158]
[1752092897114,0.20876792,111110.0,111100.0,2.0505158]
[1752092897314,0.56956792,111110.0,111100.0,2.0505158]
[1752092897515,0.59306792,111110.0,111100.0,0.7528758]
[1752092897716,0.59306792,111110.0,111100.0,1.4181858]
[1752092898112,0.59606792,111110.0,111100.0,1.4181858]
[1752092898312,0.19629792,111110.0,111100.0,1.4181858]
[1752092898514,0.21176792,111110.0,111100.0,1.4181858]
[1752092898714,0.57256792,111110.0,111100.0,1.3681858]
[1752092899723,0.57256792,111110.0,111100.0,1.3881858]
[1752092899912,0.60452455,111110.0,111100.0,1.3881858]
[1752092900114,0.69272455,111110.0,111100.0,1.3881858]
[1752092900320,0.71622455,111110.0,111100.0,1.3881858]
[1752092901219,0.35542455,111110.0,111100.0,1.3881858]
[1752092901418,0.71622455,111110.0,111100.0,1.3881858]
[1752092901619,1.06074083,111110.0,111100.0,0.35]
[1752092901920,0.1799918,111090.0,111080.0,0.08092703]
[1752092902120,1.96488501,111090.0,111080.0,0.14092703]
[1752092902426,2.14358501,111090.0,111080.0,0.06]
[1752092902826,2.17554215,111090.0,111080.0,0.06]
[1752092903026,2.17654215,111090.0,111080.0,0.062]
[1752092903214,2.17754215,111090.0,111080.0,0.002]
[1752092903419,2.17754215,111090.0,111080.0,0.062]
[1752092903819,2.17754215,111090.0,111080.0,0.061]
[1752092904615,0.1800083,111080.0,111070.0,0.00180059]
[1752092904830,1.47817697,111080.0,111070.0,0.33584258]
[1752092905126,0.1800407,111060.0,111050.0,0.09784902]
[1752092905431,1.91394633,111060.0,111050.0,0.37014623]
[1752092905629,2.11478475,111060.0,111050.0,0.37014623]
[1752092905831,2.11478475,111060.0,111050.0,0.35692199]
[1752092906132,0.93304847,111060.0,111050.0,0.56672064]
[1752092906322,0.93304847,111060.0,111050.0,0.73328849]
[1752092906524,0.93504847,111060.0,111050.0,0.75253834]
[1752092906830,0.57424847,111060.0,111050.0,0.82021552]
[1752092907426,0.57424847,111060.0,111050.0,0.82696105]
[1752092907730,0.93504847,111060.0,111050.0,1.39479402]
[1752092907926,0.57424847,111060.0,111050.0,1.47572105]
[1752092908130,0.57424847,111060.0,111050.0,1.11921105]
[1752092908330,0.58971847,111060.0,111050.0,1.47921105]
[1752092908831,0.40967777,111060.0,111050.0,1.47921105]
[1752092909028,0.40967777,111060.0,111050.0,1.82372733]
[1752092909228,0.39733935,111060.0,111050.0,1.7428003]